[Event "XX Gran Hotel Bali-A 2023"]
[Site "Benidorm"]
[Date "2023.12.02"]
[Round "2.6"]
[White "Decuigniere, Tom"]
[Black "Donate Moreno, Silvia"]
[Result "1-0"]
[ECO "A12"]
[WhiteElo "2408"]
[BlackElo "2156"]
[Annotator "TA"]
[PlyCount "111"]
[EventDate "2023.12.02"]
[EventType "swiss"]
[EventCountry "ESP"]
[SourceTitle "playchess.com"]
[Source "ChessBase"]
[SourceQuality "1"]
[TimeControl "5400+30"]

{[%evp 9,111,10,8,-18,1,0,10,0,5,-9,6,0,8,-13,0,0,0,0,0,0,0,0,13,12,11,0,16,0,0,0,13,10,14,19,25,22,21,15,35,11,25,14,9,0,0,0,0,0,23,17,25,22,37,22,25,15,81,81,75,78,177,160,142,152,216,220,232,245,283,287,287,289,310,296,263,280,604,304,377,263,240,218,367,356,330,289,276,85,163,138,160,9,187,0,413,425,1506,1446,29992,29993,29997,29998,29998,29999]} 1. Nf3 {[%emt 0:00:13]} Nf6 {[%emt 0:00:12]} 2. e3 {[%emt 0:00:39]} d5 {[%emt 0:01:09]} 3. c4 {[%emt 0:01:13]} c6 {[%emt 0:00:47]} 4. b3 {[%emt 0:01:28]} Bg4 {[%emt 0:05:46]} 5. Bb2 {[%emt 0:00:54]} Nbd7 {[%emt 0:00:40]} 6. d4 {[%emt 0:05:14] A12: English Opening: 1...c6 with b3 by White.} e6 {[%emt 0:01:39]} (6... e5 $5) 7. Be2 {[%emt 0:00:41] was the old line (7.Nbd2).} Bd6 {[%emt 0:01:21]} 8. Nc3 {[%emt 0:01:50] The position is equal.} Qe7 {[%emt 0:01:09] [#]} 9. Qc2 $146 {[%emt 0:05:15]} ({Predecessor:} 9. h3 Bh5 10. Rc1 O-O 11. O-O Ba3 12. Qc2 Bg6 13. Qd2 Bb4 14. Bd3 Ne4 15. Qc2 Nxc3 16. Bxc3 Bxc3 17. Qxc3 Bxd3 18. Qxd3 Rfe8 19. Rfd1 {0-1 Dimitrov,A (2250)-Begunov,K (2325) Titled Tuesday intern op 14th Jun Early blitz 2022 (1)}) 9... Rd8 {[%emt 0:02:00]} 10. O-O {[%emt 0:02:24]} O-O {[%emt 0:01:06]} 11. e4 {[%emt 0:03:00]} dxe4 {[%emt 0:02:34]} 12. Nxe4 {[%emt 0:00:07]} Nxe4 {[%emt 0:00:22]} 13. Qxe4 {[%emt 0:00:05]} Nf6 {[%emt 0:00:14]} 14. Qe3 {[%emt 0:01:01]} Ba3 {[%emt 0:01:59]} 15. Bc3 {[%emt 0:01:18]} Bb4 {[%emt 0:05:26]} 16. Bxb4 {[%emt 0:06:02]} Qxb4 {[%emt 0:00:09]} 17. Rfd1 {[%emt 0:00:14]} Qa5 {[%emt 0:09:08]} 18. h3 {[%emt 0:11:05]} Bxf3 {[%emt 0:05:14]} 19. Bxf3 {[%emt 0:00:05]} Rc8 {[%emt 0:06:58]} 20. Qe5 {[%emt 0:04:30]} Qc7 {[%emt 0:03:48]} 21. Rd3 {[%emt 0:01:33]} Nd7 {[%emt 0:01:50]} 22. Qe3 {[%emt 0:07:27]} Rfe8 {[%emt 0:02:29]} 23. Rad1 {[%emt 0:01:23][%cal Ba1d1,Bd1e1,Be1e5][%mdl 32]} a5 {[%emt 0:11:00]} 24. Qd2 {[%emt 0:03:09]} Nf6 {[%emt 0:03:06]} 25. Re1 {[%emt 0:04:09]} h6 {[%emt 0:02:29]} 26. Re5 {[%emt 0:00:57]} b6 {[%emt 0:00:39]} 27. Re1 {[%emt 0:06:51]} Red8 {[%emt 0:03:51]} 28. Qe3 {[%emt 0:02:46]} b5 {[%emt 0:06:00]} 29. Rc1 {[%emt 0:03:15]} b4 {[%emt 0:03:01]} 30. Rcd1 {[%emt 0:02:12]} Rd6 {[%emt 0:03:01]} 31. Qe5 {[%emt 0:02:17]} Nd7 {[%emt 0:01:50]} 32. Qg3 {[%emt 0:03:10] Hoping for c5.} e5 {[%emt 0:03:29]} 33. Bg4 $16 {[%emt 0:01:33] White is more active.} ({Don't play} 33. dxe5 Rxd3 34. Rxd3 Nxe5 $14) 33... Re8 {[%emt 0:07:05]} 34. Re1 {[%emt 0:02:44]} Qd8 {[%emt 0:02:10]} (34... Re7 $16) 35. dxe5 $18 {[%emt 0:02:39]} Rxd3 {[%emt 0:01:25]} 36. Qxd3 {[%emt 0:00:05]} Nc5 {[%emt 0:00:04]} (36... Nf8 $16 37. Qe3 Re7) 37. Qe3 {[%emt 0:01:03]} Qe7 {[%emt 0:00:51]} 38. Bf3 {[%emt 0:01:50][%cal Bg4f3,Bf3c6,Bc6d5][%mdl 32]} Rd8 {[%emt 0:00:42]} 39. Bxc6 {[%emt 0:00:48]} Rd3 {[%emt 0:00:28]} 40. Qe2 {[%emt 0:02:23]} Qg5 {[%emt 0:00:55]} 41. Bd5 {[%emt 0:00:51]} Rd2 {[%emt 0:01:46]} 42. Qf3 {[%emt 0:01:11]} Qe7 {[%emt 0:00:12]} (42... Ne6 43. Bxe6 fxe6 44. Qa8+ Qd8) 43. Re2 {[%emt 0:01:49]} Rd3 {[%emt 0:00:35]} 44. Re3 {[%emt 0:00:33]} Rd2 {[%emt 0:00:13]} 45. Qg4 {[%emt 0:01:33]} Rxa2 {[%emt 0:01:02]} (45... Ne6 $142 46. Re2 Rd4) 46. Qc8+ {[%emt 0:01:59]} Kh7 {[%emt 0:00:42]} 47. Qf5+ {[%emt 0:00:20]} Kg8 {[%emt 0:00:11]} 48. f4 $2 {[%emt 0:04:05]} (48. e6 $1 $18 {[%cal Re6f7] is the precise move to win.} Nxe6 49. Bxe6 fxe6 50. Rxe6 (50. Qxe6+ Qxe6 51. Rxe6 Kf7 $11)) 48... Ra1+ {[%emt 0:00:44]} (48... a4 $16) 49. Kh2 {[%emt 0:00:05] e6 is the strong threat.} Ne6 {[%emt 0:00:03] [#]} 50. Qg4 $2 {[%emt 0:01:15] Prevents Rd1.} (50. Qe4 $1 $16 {Threatens to win with f5.} Nc5 51. Qf5) 50... Qc5 $2 {[%emt 0:01:09] [#]} (50... Qa7 $1 $11 51. Qg3 Rf1) 51. Qf3 $2 {[%emt 0:00:51]} (51. Re2 $1 $18 Rb1 52. Bxe6 fxe6 53. Qxe6+ Kh8 54. Qd7 Qg1+ 55. Kg3 Rxb3+ 56. Kg4) 51... Nd4 {[%emt 0:00:30][%mdl 8192]} (51... Rf1 $1 $11 {and Black stays safe.} 52. Qxf1 Qxe3) 52. Qe4 {[%emt 0:01:09][%cal Od5f7] Strongly threatening Bxf7+!} Nc2 {[%emt 0:00:25] [#]} (52... Ne6 $142 53. Kg3 Rd1) 53. Qf5 $1 {[%emt 0:00:45]} Qa7 {[%emt 0:00:37] [#]} (53... Qxd5 54. Qc8+) 54. e6 $1 {[%emt 0:00:49][%cal Be5e6,Be6f7][%mdl 32] White mates.} Qxe3 {[%emt 0:00:40]} (54... Qb8 55. Qxf7+) 55. exf7+ {[%emt 0:00:08]} Kf8 {[%emt 0:00:04]} 56. Qc8+ {[%emt 0:00:04] Artfully played by Decuigniere.   Weighted Error Value: White=0.27 (precise) /Black=0.49} 1-0

[Event "XX Gran Hotel Bali-A 2023"]
[Site "Benidorm"]
[Date "2023.12.02"]
[Round "2.7"]
[White "Midoux, Sebastien"]
[Black "Trigo Urquijo, Sergio"]
[Result "0-1"]
[ECO "B12"]
[WhiteElo "2151"]
[BlackElo "2400"]
[Annotator "TA"]
[PlyCount "70"]
[EventDate "2023.12.02"]
[EventType "swiss"]
[EventCountry "ESP"]
[SourceTitle "playchess.com"]
[Source "ChessBase"]
[SourceQuality "1"]
[TimeControl "5400+30"]

{[%evp 9,70,14,11,12,19,-22,14,0,0,-9,15,0,20,7,68,12,35,0,46,40,53,-14,67,38,45,0,17,21,13,-14,0,-25,-25,-32,-20,-20,-20,-32,-14,-30,-33,-22,-21,-17,-17,-40,-41,-31,-32,-45,-42,-33,-37,-176,-144,-153,-146,-170,-180,-176,-153,-29997,-29998]} 1. e4 {[%emt 0:00:04]} c6 {[%emt 0:00:25]} 2. d4 {[%emt 0:00:25]} d5 {[%emt 0:00:21]} 3. e5 {[%emt 0:00:09]} Bf5 {[%emt 0:00:43]} 4. h4 {[%emt 0:00:30]} h5 {[%emt 0:01:17]} 5. Bd3 {[%emt 0:00:15]} Bxd3 {[%emt 0:01:31]} 6. Qxd3 {[%emt 0:00:03][%cal Oe5e6] B12: Caro-Kann: Advance Variation.} Qa5+ {[%emt 0:00:28]} 7. b4 {[%emt 0:00:07]} Qa6 {[%emt 0:02:22] Black is weak on the dark squares} 8. Qf3 {[%emt 0:01:37][%cal Oe5e6] The position is equal.} e6 {[%emt 0:06:12]} 9. c3 {[%emt 0:00:07]} Nd7 {[%emt 0:14:03]} 10. Ne2 {[%emt 0:05:47]} Ne7 {[%emt 0:05:27]} 11. a4 {[%emt 0:03:42] [#]} b6 $146 {[%emt 0:08:38]} (11... Nf5 $11) ({Predecessor:} 11... Nf5 12. Ng3 Nxg3 13. Qxg3 g6 14. Bg5 b6 15. Nd2 Rc8 16. Qf3 Be7 17. Bxe7 Kxe7 {½-½ Pichot,A (2625)-Nyzhnyk,I (2674) Titled Tuesday intern op 18th Jan blitz 2022 (10)}) 12. Nd2 {[%emt 0:40:55]} ({White should try} 12. Bg5 $14) 12... Qb7 {[%emt 0:04:55]} 13. Ng3 {[%emt 0:03:58]} g6 {[%emt 0:01:28]} (13... c5 $11) 14. O-O $14 {[%emt 0:00:56]} a5 {[%emt 0:12:17]} 15. Nb3 {[%emt 0:06:17] [#]} (15. b5 $14) 15... c5 {[%emt 0:08:58]} 16. bxc5 {[%emt 0:12:46]} ({Much weaker is} 16. dxc5 axb4 17. cxb4 Nc6 $11) 16... bxc5 {[%emt 0:00:57]} 17. Nxc5 {[%emt 0:05:57]} (17. Rb1 $5 {[%cal Rc1a3]}) 17... Nxc5 {[%emt 0:00:07]} 18. dxc5 {[%emt 0:00:03]} Bg7 {[%emt 0:03:15]} 19. Qe2 {[%emt 0:03:33]} Qc7 {[%emt 0:02:48][%csl LRc5,LRe5][%mdl 1024] Black has compensation.} 20. Re1 {[%emt 0:00:53]} O-O {[%emt 0:01:30]} 21. Ba3 {[%emt 0:01:23]} Nc6 {[%emt 0:00:59][%cal Rc6e5]} 22. f4 {[%emt 0:00:18]} Qe7 {[%emt 0:01:01]} 23. Qf2 {[%emt 0:03:38]} Qxh4 {[%emt 0:22:18]} 24. Ne2 {[%emt 0:01:10]} Qxf2+ {[%emt 0:00:00]} 25. Kxf2 {[%emt 0:00:02]} f6 {[%emt 0:00:00]} 26. exf6 {[%emt 0:01:01]} Bxf6 {[%emt 0:00:00]} 27. Red1 {[%emt 0:04:05]} g5 {[%emt 0:00:00]} 28. g3 {[%emt 0:01:40]} h4 {[%emt 0:00:00]} 29. Kg2 {[%emt 0:00:28]} hxg3 {[%emt 0:00:00]} 30. fxg5 {[%emt 0:00:29]} Bxg5 {[%emt 0:00:00] Hoping for ...Rf2+.} 31. Kxg3 {[%emt 0:00:25] [#]} (31. Nd4 $15 Nxd4 32. cxd4) 31... Ra7 $1 $19 {[%emt 0:00:00]} 32. Rf1 {[%emt 0:02:34]} Bf6 {[%emt 0:00:00] White must now prevent ...Rg7+. Black is much more active.} 33. Rg1 {[%emt 0:01:06]} Be5+ {[%emt 0:00:00]} 34. Kh3+ {[%emt 0:00:04]} Kh8 {[%emt 0:00:00] Threatens to win with ...Rh7+.} 35. Rh1 $2 {[%emt 0:01:00]} (35. Raf1 $17 Rh7+ 36. Kg4) 35... Rg8 {[%emt 0:00:00] Weighted Error Value: White=0.37/Black=0.15 (very precise)} 0-1

[Event "XX Gran Hotel Bali-A 2023"]
[Site "Benidorm"]
[Date "2023.12.02"]
[Round "2.8"]
[White "Davtyan, David Arm."]
[Black "Rodriguez Redondo, Adhara"]
[Result "1-0"]
[ECO "E05"]
[WhiteElo "2362"]
[BlackElo "2123"]
[Annotator "RC"]
[PlyCount "77"]
[EventDate "2023.12.02"]
[EventType "swiss"]
[EventCountry "ESP"]
[SourceTitle "playchess.com"]
[Source "ChessBase"]
[SourceQuality "1"]
[TimeControl "5400+30"]

1. d4 {[%emt 0:01:38]} Nf6 {[%emt 0:00:03]} 2. Nf3 {[%emt 0:01:28]} d5 {[%emt 0:00:15]} 3. g3 {[%emt 0:00:06]} e6 {[%emt 0:00:43]} 4. Bg2 {[%emt 0:00:17]} Be7 {[%emt 0:00:09]} 5. O-O {[%emt 0:00:07]} O-O {[%emt 0:00:02]} 6. c4 {[%emt 0:00:04]} dxc4 {[%emt 0:00:15]} 7. Qc2 {[%emt 0:00:23]} a6 {[%emt 0:00:06]} 8. a4 {[%emt 0:00:05]} Bd7 {[%emt 0:00:42]} 9. Qxc4 {[%emt 0:00:07]} Bc6 {[%emt 0:00:08]} 10. Bg5 {[%emt 0:00:05]} Bd5 {[%emt 0:06:41]} 11. Qd3 {[%emt 0:01:00]} Be4 {[%emt 0:06:32]} 12. Qe3 {[%emt 0:00:07]} Bc6 {[%emt 0:13:55]} 13. Nc3 {[%emt 0:00:18]} a5 {[%emt 0:02:04]} 14. Rfd1 {[%emt 0:13:51]} Nd5 {[%emt 0:09:39]} 15. Nxd5 {[%emt 0:12:30]} Bxd5 {[%emt 0:04:20]} 16. Bxe7 {[%emt 0:03:22]} Qxe7 {[%emt 0:02:16]} 17. Qf4 {[%emt 0:04:22]} Qd6 {[%emt 0:10:26]} 18. Qh4 {[%emt 0:02:58]} c6 {[%emt 0:06:50]} 19. e4 {[%emt 0:07:28]} Bb3 {[%emt 0:07:35]} 20. Rd3 {[%emt 0:00:37]} Qb4 {[%emt 0:05:26]} 21. g4 {[%emt 0:06:58]} Bc2 {[%emt 0:05:10]} 22. Re3 {[%emt 0:00:37]} Qxb2 {[%emt 0:01:41]} 23. Rae1 {[%emt 0:00:40]} Nd7 {[%emt 0:05:05]} 24. g5 {[%emt 0:02:57]} Rfe8 {[%emt 0:02:36]} 25. R1e2 {[%emt 0:09:08]} Qb1+ {[%emt 0:02:32]} 26. Bf1 {[%emt 0:04:24]} Bxa4 {[%emt 0:01:25]} 27. Re1 {[%emt 0:07:07]} Qb4 {[%emt 0:00:19]} 28. Bd3 {[%emt 0:03:17]} Bb5 {[%emt 0:02:11]} 29. Rb1 {[%emt 0:01:15]} Qe7 {[%emt 0:01:05]} 30. Bc2 {[%emt 0:00:17]} a4 {[%emt 0:02:18]} 31. e5 {[%emt 0:00:26]} Nf8 {[%emt 0:00:32]} 32. Nd2 {[%emt 0:00:05]} a3 {[%emt 0:02:51]} 33. Rh3 {[%emt 0:00:05]} h6 {[%emt 0:00:31]} 34. Ne4 {[%emt 0:00:04]} a2 {[%emt 0:00:33]} 35. Ra1 {[%emt 0:01:59]} Red8 {[%emt 0:00:30]} 36. Nf6+ {[%emt 0:01:45]} Kh8 {[%emt 0:00:15]} 37. Qg4 {[%emt 0:00:32]} Qb4 {[%emt 0:00:46]} 38. Rxh6+ {[%emt 0:01:05]} gxh6 {[%emt 0:00:14]} 39. Qh5 {[%emt 0:00:12]} 1-0

[Event "XX Gran Hotel Bali-A 2023"]
[Site "Benidorm"]
[Date "2023.12.02"]
[Round "2.9"]
[White "Garcia Martin, Marta"]
[Black "Atienza Alvarez, Javier"]
[Result "0-1"]
[ECO "C02"]
[WhiteElo "2350"]
[BlackElo "2105"]
[Annotator "RC"]
[PlyCount "74"]
[EventDate "2023.12.02"]
[EventType "swiss"]
[EventCountry "ESP"]
[SourceTitle "playchess.com"]
[Source "ChessBase"]
[SourceQuality "1"]
[TimeControl "5400+30"]

1. e4 {[%emt 0:02:50]} e6 {[%emt 0:00:17]} 2. d4 {[%emt 0:00:06]} d5 {[%emt 0:00:06]} 3. e5 {[%emt 0:00:12]} c5 {[%emt 0:00:06]} 4. c3 {[%emt 0:00:03]} Nc6 {[%emt 0:00:08]} 5. Nf3 {[%emt 0:00:07]} Bd7 {[%emt 0:00:04]} 6. Be2 {[%emt 0:00:09]} Nge7 {[%emt 0:00:35]} 7. O-O {[%emt 0:00:16]} Ng6 {[%emt 0:02:30]} 8. Be3 {[%emt 0:00:13]} cxd4 {[%emt 0:05:48]} 9. cxd4 {[%emt 0:00:43]} f6 {[%emt 0:01:36]} 10. exf6 {[%emt 0:06:04]} Qxf6 {[%emt 0:00:11]} 11. Nc3 {[%emt 0:29:55]} Bd6 {[%emt 0:00:51]} 12. g3 {[%emt 0:07:29]} O-O {[%emt 0:01:02]} 13. Rc1 {[%emt 0:01:03]} Kh8 {[%emt 0:11:42]} 14. Qd2 {[%emt 0:11:59]} Nce7 {[%emt 0:10:33]} 15. Ng5 {[%emt 0:10:21]} Nf5 {[%emt 0:26:37]} 16. f4 {[%emt 0:06:15]} h6 {[%emt 0:20:21]} 17. Nf3 {[%emt 0:15:10]} Nxe3 {[%emt 0:02:00]} 18. Qxe3 {[%emt 0:00:03]} Nxf4 {[%emt 0:00:05]} 19. gxf4 {[%emt 0:00:04]} Bxf4 {[%emt 0:00:05]} 20. Qf2 {[%emt 0:00:33]} Bxc1 {[%emt 0:09:14]} 21. Rxc1 {[%emt 0:00:03]} e5 {[%emt 0:02:00]} 22. dxe5 {[%emt 0:06:38]} Qf4 {[%emt 0:01:18]} 23. Rd1 {[%emt 0:00:13]} Bg4 {[%emt 0:01:33]} 24. Rd3 {[%emt 0:01:27]} Qc1+ {[%emt 0:02:35]} 25. Kg2 {[%emt 0:00:25]} Qxb2 {[%emt 0:00:37]} 26. Nxd5 {[%emt 0:00:35]} Rad8 {[%emt 0:01:36]} 27. Rb3 {[%emt 0:00:31]} Qc2 {[%emt 0:00:00]} 28. Ne3 {[%emt 0:00:31]} Qxa2 {[%emt 0:00:28]} 29. Nxg4 {[%emt 0:00:28]} Qxb3 {[%emt 0:00:05]} 30. Ne3 {[%emt 0:00:31]} Rd2 {[%emt 0:00:39]} 31. Nf1 {[%emt 0:00:20]} Rb2 {[%emt 0:00:29]} 32. Ng3 {[%emt 0:00:14]} a5 {[%emt 0:00:44]} 33. Ne4 {[%emt 0:00:48]} Qd5 {[%emt 0:00:31]} 34. Nc3 {[%emt 0:00:38]} Qc6 {[%emt 0:00:26]} 35. Nd1 {[%emt 0:00:31]} Rxf3 {[%emt 0:00:32]} 36. Bxf3 {[%emt 0:00:05]} Rxf2+ {[%emt 0:00:05]} 37. Nxf2 {[%emt 0:00:01]} Qg6+ {[%emt 0:00:26]} 0-1

[Event "XX Gran Hotel Bali-A 2023"]
[Site "Benidorm"]
[Date "2023.12.02"]
[Round "2.10"]
[White "Aakash Sharadchandra, Dalvi"]
[Black "Campora, Daniel H."]
[Result "0-1"]
[ECO "A88"]
[WhiteElo "2114"]
[BlackElo "2341"]
[Annotator "RC"]
[PlyCount "64"]
[EventDate "2023.12.02"]
[EventType "swiss"]
[EventCountry "ESP"]
[SourceTitle "playchess.com"]
[Source "ChessBase"]
[SourceQuality "1"]
[TimeControl "5400+30"]

1. d4 {[%emt 0:02:54]} f5 {[%emt 0:00:00]} 2. c4 {[%emt 0:00:33]} Nf6 {[%emt 0:00:08]} 3. Nf3 {[%emt 0:00:07]} g6 {[%emt 0:00:06]} 4. g3 {[%emt 0:00:05]} Bg7 {[%emt 0:00:06]} 5. Bg2 {[%emt 0:00:05]} O-O {[%emt 0:00:24]} 6. O-O {[%emt 0:00:08]} d6 {[%emt 0:00:07]} 7. Nc3 {[%emt 0:00:07]} c6 {[%emt 0:00:15]} 8. d5 {[%emt 0:00:09]} e5 {[%emt 0:02:14]} 9. dxe6 {[%emt 0:00:12]} Bxe6 {[%emt 0:00:55]} 10. b3 {[%emt 0:00:22]} Na6 {[%emt 0:00:48]} 11. Ng5 {[%emt 0:00:14]} Bc8 {[%emt 0:04:45]} 12. Bb2 {[%emt 0:03:17]} Qe7 {[%emt 0:02:56]} 13. Qd2 {[%emt 0:05:50]} Nc5 {[%emt 0:05:53]} 14. Rad1 {[%emt 0:01:31]} h6 {[%emt 0:01:40]} 15. Nf3 {[%emt 0:01:27]} Nfe4 {[%emt 0:01:59]} 16. Qc2 {[%emt 0:01:21]} Be6 {[%emt 0:07:22]} 17. Nd4 {[%emt 0:14:38]} Bf7 {[%emt 0:03:03]} 18. b4 {[%emt 0:19:15]} Nxc3 {[%emt 0:04:53]} 19. Qxc3 {[%emt 0:00:46]} Na4 {[%emt 0:09:15]} 20. Nxc6 {[%emt 0:01:30]} Bxc3 {[%emt 0:02:04]} 21. Nxe7+ {[%emt 0:00:11]} Kg7 {[%emt 0:00:14]} 22. Bxc3+ {[%emt 0:00:48]} Nxc3 {[%emt 0:00:12]} 23. Rxd6 {[%emt 0:00:27]} Rad8 {[%emt 0:04:05]} 24. Rxd8 {[%emt 0:02:22]} Rxd8 {[%emt 0:00:03]} 25. Nd5 {[%emt 0:02:47]} Nxe2+ {[%emt 0:01:30]} 26. Kh1 {[%emt 0:00:08]} b5 {[%emt 0:00:18]} 27. Re1 {[%emt 0:03:07]} Nd4 {[%emt 0:06:29]} 28. Rd1 {[%emt 0:10:10]} Nc6 {[%emt 0:02:57]} 29. Rc1 {[%emt 0:10:10]} bxc4 {[%emt 0:00:18]} 30. Rxc4 {[%emt 0:00:53]} Rxd5 {[%emt 0:01:39]} 31. Rc1 {[%emt 0:00:45]} Nd4 {[%emt 0:00:54]} 32. Rc7 {[%emt 0:02:50]} Rd6 {[%emt 0:01:13]} 0-1

[Event "XX Gran Hotel Bali-A 2023"]
[Site "Benidorm"]
[Date "2023.12.02"]
[Round "2.11"]
[White "Salvador Buiza, Victor"]
[Black "Ingunza Curro, Andres"]
[Result "0-1"]
[ECO "C57"]
[WhiteElo "2112"]
[BlackElo "2328"]
[Annotator "RC"]
[PlyCount "118"]
[EventDate "2023.12.02"]
[EventType "swiss"]
[EventCountry "ESP"]
[SourceTitle "playchess.com"]
[Source "ChessBase"]
[SourceQuality "1"]
[TimeControl "5400+30"]

1. e4 {[%emt 0:00:04]} e5 {[%emt 0:08:06]} 2. Nf3 {[%emt 0:00:25]} Nc6 {[%emt 0:00:30]} 3. Bc4 {[%emt 0:00:08]} Nf6 {[%emt 0:02:05]} 4. Ng5 {[%emt 0:00:12]} Bc5 {[%emt 0:00:09]} 5. Bxf7+ {[%emt 0:00:42]} Ke7 {[%emt 0:00:01]} 6. Bc4 {[%emt 0:02:58]} Qe8 {[%emt 0:00:26]} 7. O-O {[%emt 0:00:59]} h6 {[%emt 0:03:27]} 8. Nf3 {[%emt 0:02:07]} d6 {[%emt 0:00:35]} 9. b4 {[%emt 0:04:13]} Bxb4 {[%emt 0:08:27]} 10. c3 {[%emt 0:05:55]} Ba5 {[%emt 0:01:20]} 11. d4 {[%emt 0:02:14]} Bg4 {[%emt 0:08:45]} 12. Qd3 {[%emt 0:04:34]} Bxf3 {[%emt 0:13:58]} 13. Qxf3 {[%emt 0:04:39]} Qg6 {[%emt 0:12:39]} 14. Bd5 {[%emt 0:08:26]} Rhf8 {[%emt 0:11:25]} 15. Bxc6 {[%emt 0:03:27]} bxc6 {[%emt 0:13:54]} 16. dxe5 {[%emt 0:01:39]} Nxe4 {[%emt 0:00:18]} 17. exd6+ {[%emt 0:01:09]} cxd6 {[%emt 0:02:59]} 18. Qe2 {[%emt 0:01:50]} Kf7 {[%emt 0:01:07]} 19. Be3 {[%emt 0:06:47]} Bb6 {[%emt 0:03:33]} 20. Nd2 {[%emt 0:04:59]} Nxd2 {[%emt 0:00:32]} 21. Qxd2 {[%emt 0:00:32]} Rfe8 {[%emt 0:01:32]} 22. Rfe1 {[%emt 0:00:47]} Kg8 {[%emt 0:00:54]} 23. c4 {[%emt 0:03:59]} Kh7 {[%emt 0:01:45]} 24. Rad1 {[%emt 0:01:16]} Re6 {[%emt 0:02:01]} 25. Bf4 {[%emt 0:06:36]} Rae8 {[%emt 0:01:24]} 26. Rxe6 {[%emt 0:03:07]} Qxe6 {[%emt 0:00:05]} 27. Qd3+ {[%emt 0:07:24]} Qe4 {[%emt 0:00:13]} 28. Kf1 {[%emt 0:04:27]} Qxd3+ {[%emt 0:00:31]} 29. Rxd3 {[%emt 0:00:07]} Re4 {[%emt 0:00:07]} 30. Bxd6 {[%emt 0:01:19]} Rxc4 {[%emt 0:00:10]} 31. Rd2 {[%emt 0:01:24]} Ba5 {[%emt 0:01:08]} 32. Rb2 {[%emt 0:01:09]} Bb6 {[%emt 0:00:56]} 33. Be5 {[%emt 0:01:41]} g5 {[%emt 0:00:25]} 34. Rd2 {[%emt 0:01:53]} Kg6 {[%emt 0:00:35]} 35. h3 {[%emt 0:01:52]} Ba5 {[%emt 0:00:47]} 36. Rd6+ {[%emt 0:02:00]} Kf5 {[%emt 0:00:46]} 37. Bh2 {[%emt 0:00:46]} h5 {[%emt 0:00:41]} 38. Rh6 {[%emt 0:03:56]} Rc1+ {[%emt 0:00:27]} 39. Ke2 {[%emt 0:00:07]} Rc2+ {[%emt 0:00:05]} 40. Kd3 {[%emt 0:01:07]} Rxf2 {[%emt 0:00:41]} 41. Rxc6 {[%emt 0:00:22]} Bb6 {[%emt 0:00:41]} 42. Bg1 {[%emt 0:00:30]} Rxg2 {[%emt 0:00:10]} 43. Bxb6 {[%emt 0:00:06]} axb6 {[%emt 0:00:01]} 44. Rxb6 {[%emt 0:01:10]} Rg3+ {[%emt 0:00:14]} 45. Ke2 {[%emt 0:00:17]} Rxh3 {[%emt 0:00:37]} 46. Rb5+ {[%emt 0:00:09]} Kg4 {[%emt 0:00:35]} 47. Rb4+ {[%emt 0:01:50]} Kg3 {[%emt 0:00:07]} 48. a4 {[%emt 0:02:57]} Rh2+ {[%emt 0:00:17]} 49. Kf1 {[%emt 0:00:06]} Ra2 {[%emt 0:00:46]} 50. Rb5 {[%emt 0:00:20]} Ra1+ {[%emt 0:00:43]} 51. Ke2 {[%emt 0:00:05]} Kh4 {[%emt 0:00:58]} 52. a5 {[%emt 0:00:09]} g4 {[%emt 0:00:07]} 53. Kf2 {[%emt 0:00:17]} g3+ {[%emt 0:00:16]} 54. Kg2 {[%emt 0:00:18]} Ra2+ {[%emt 0:00:02]} 55. Kf3 {[%emt 0:01:30]} g2 {[%emt 0:00:33]} 56. Rb1 {[%emt 0:01:08]} Kh3 {[%emt 0:00:07]} 57. Rb5 {[%emt 0:00:04]} h4 {[%emt 0:00:04]} 58. Rg5 {[%emt 0:00:29]} Kh2 {[%emt 0:00:14]} 59. Rg4 {[%emt 0:00:34]} h3 {[%emt 0:00:06]} 0-1

[Event "XX Gran Hotel Bali-A 2023"]
[Site "Benidorm"]
[Date "2023.12.02"]
[Round "2.12"]
[White "Goluch, Piotr"]
[Black "Barbera Estelles, Rosendo"]
[Result "1-0"]
[ECO "D90"]
[WhiteElo "2309"]
[BlackElo "2120"]
[Annotator "RC"]
[PlyCount "73"]
[EventDate "2023.12.02"]
[EventType "swiss"]
[EventCountry "ESP"]
[SourceTitle "playchess.com"]
[Source "ChessBase"]
[SourceQuality "1"]
[TimeControl "5400+30"]

1. d4 {[%emt 0:00:05]} Nf6 {[%emt 0:00:45]} 2. c4 {[%emt 0:00:04]} g6 {[%emt 0:00:39]} 3. Nc3 {[%emt 0:00:05]} d5 {[%emt 0:00:21]} 4. cxd5 {[%emt 0:01:20]} Nxd5 {[%emt 0:00:07]} 5. Bd2 {[%emt 0:00:11]} Bg7 {[%emt 0:01:56]} 6. Rc1 {[%emt 0:06:07]} Nb6 {[%emt 0:08:36]} 7. Nf3 {[%emt 0:05:16]} O-O {[%emt 0:02:58]} 8. e3 {[%emt 0:00:06]} Nc6 {[%emt 0:04:38]} 9. Bb5 {[%emt 0:00:54]} Bd7 {[%emt 0:00:53]} 10. O-O {[%emt 0:00:35]} a6 {[%emt 0:01:24]} 11. Be2 {[%emt 0:00:13]} e5 {[%emt 0:09:10]} 12. d5 {[%emt 0:01:10]} Ne7 {[%emt 0:00:39]} 13. e4 {[%emt 0:00:06]} Nbc8 {[%emt 0:01:55]} 14. Na4 {[%emt 0:06:04]} Nd6 {[%emt 0:04:18]} 15. Nc5 {[%emt 0:00:11]} Bc8 {[%emt 0:11:05]} 16. Qc2 {[%emt 0:07:26]} c6 {[%emt 0:07:38]} 17. Rfd1 {[%emt 0:03:28]} cxd5 {[%emt 0:01:13]} 18. exd5 {[%emt 0:00:04]} b6 {[%emt 0:02:42]} 19. Na4 {[%emt 0:00:33]} Bb7 {[%emt 0:12:08]} 20. Bg5 {[%emt 0:03:54]} f6 {[%emt 0:04:47]} 21. Be3 {[%emt 0:00:05]} Rc8 {[%emt 0:02:47]} 22. Qb3 {[%emt 0:00:17]} Rxc1 {[%emt 0:00:45]} 23. Bxc1 {[%emt 0:00:08]} Nec8 {[%emt 0:04:20]} 24. Be3 {[%emt 0:00:19]} b5 {[%emt 0:01:01]} 25. Nc5 {[%emt 0:00:06]} Rf7 {[%emt 0:00:18]} 26. a4 {[%emt 0:11:00]} Qa5 {[%emt 0:03:58]} 27. axb5 {[%emt 0:00:06]} axb5 {[%emt 0:00:18]} 28. h4 {[%emt 0:01:00]} Nb6 {[%emt 0:02:57]} 29. h5 {[%emt 0:54:07]} Qa8 {[%emt 0:00:53]} 30. Nxb7 {[%emt 0:00:00]} Rxb7 {[%emt 0:02:33]} 31. hxg6 {[%emt 0:00:00]} hxg6 {[%emt 0:00:08]} 32. Bc5 {[%emt 0:00:00]} Qd8 {[%emt 0:01:51]} 33. Nh4 {[%emt 0:00:00]} g5 {[%emt 0:02:03]} 34. Bxd6 {[%emt 0:00:00]} Qxd6 {[%emt 0:01:48]} 35. Nf5 {[%emt 0:00:00]} Qd7 {[%emt 0:02:48]} 36. d6+ {[%emt 0:00:00]} Kf8 {[%emt 0:00:40]} 37. Ne7 {[%emt 0:00:00]} 1-0